Cogmind - Beta 14 @@@ ROGUE MODE // 2024.10.06 @ 13:48:46 Player: Zane Result: Destroyed by B-86 Titan with Railgun Performance ------------- Evolutions (6) 3000 Regions Visited (12) 2400 Robots Destroyed (91) 455 Value Destroyed (3295) 3295 Prototype IDs (24) 480 Alien Tech Used (0) 0 Bonus (574) 574 TOTAL SCORE: 10204 Bonus ------- High Alert Combat Kills 74 Entered Garrisons 200 Aligned with FarCom 300 Cogmind --------- Core Integrity 0/1150 Matter 233/300 Energy 150/150 System Corruption 11% Temperature Cool (0) Movement Core (250) Ox4 Location -4/Factory Parts ------- > --- POWER (2) -------- Micro Fission Core > --- PROPULSION (4) --- (None) > --- UTILITY (11) ----- Advanced Signal Interpreter Advanced Melee Analysis Suite Core Analyzer Armor Integrity Analyzer Hacking Suite > --- WEAPON (2) ------- Thermic Laser Thermic Laser > --- INVENTORY (5) ---- (None) Peak State ------------ > --- POWER ------------ Micro Fission Core Light Antimatter Reactor > --- PROPULSION ------- Carbon-fiber Leg Flexi-carbon Leg Advanced VSS Leg > --- UTILITY ---------- Compact Matter Pod Advanced Signal Interpreter Improved Targeting Computer Advanced Melee Analysis Suite Core Analyzer Armor Integrity Analyzer Improved Kinecellerator Improved Core Shielding Improved Force Field Hacking Suite Recalibrator > --- WEAPON ----------- High-powered Shock Rifle Powered Hammer > --- INVENTORY -------- Tesla Rifle Assault Cannon Hardcell Cannon [Rating: 86] Favorites ----------- Power Light Ion Engine Engine Light Ion Engine Power Core Micro Fission Core Reactor Light Antimatter Reactor Propulsion Advanced VSS Leg Leg Advanced VSS Leg Hover Unit Antigrav System Flight Unit Flying Fortress v7 Utility Improved Target Analyzer Device System Restoration Module Storage Small Storage Unit Processor Improved Target Analyzer Hackware Hacking Suite Protection Experimental Propulsion Shielding Weapon KE Penetrator Energy Gun Beam Rifle Ballistic Gun KE Penetrator Ballistic Cannon Slug Cannon Impact Weapon Powered Hammer Slashing Weapon Greatsword Build | -11 -10 -10 -10 -9 -8 -7 -7 -6 -5 -5 -5 -4 ------- Run | Yrd Mat Min Exi Min Mat Fac Gar Fac Fac Was Fac Fac Slots Evolved 12 | . . . . . 4 2 . 2 2 . . 2 Power 1 | . . . . . . . . . 1 . . . Propulsion 2 | . . . . . 2 . . . . . . . Utility 9 | . . . . . 2 2 . 2 1 . . 2 Weapon . | . . . . . . . . . . . . . Parts Attached 115 | 6 2 1 1 1 7 11 13 5 18 . 19 31 Power 24 | 1 . 1 . . 1 2 4 1 4 . 5 5 Engine 9 | 1 . 1 . . 1 . . . 2 . 3 1 Core 14 | . . . . . . 2 4 1 2 . 2 3 Reactor 1 | . . . . . . . . . . . . 1 Propulsion 18 | 2 . . . . 1 . 3 . 2 . 2 8 Treads . | . . . . . . . . . . . . . Leg 12 | 2 . . . . . . 3 . 2 . 2 3 Wheel . | . . . . . . . . . . . . . Hover 2 | . . . . . . . . . . . . 2 Flight 4 | . . . . . 1 . . . . . . 3 Utility 44 | 1 1 . 1 . 4 7 2 4 6 . 8 10 Device 8 | . . . . . . 1 1 1 . . 1 4 Storage 4 | 1 . . 1 . 1 . . . . . . 1 Processor 14 | . . . . . 2 2 1 2 4 . 2 1 Hackware 3 | . 1 . . . . . . . . . 1 1 Protection 15 | . . . . . 1 4 . 1 2 . 4 3 Artifact . | . . . . . . . . . . . . . Weapon 29 | 2 1 . . 1 1 2 4 . 6 . 4 8 Energy Gun 9 | 1 1 . . . . 1 1 . . . 1 4 Energy Cannon . | . . . . . . . . . . . . . Ballistic Gun 12 | 1 . . . . 1 1 3 . 4 . 1 1 Ballistic Cannon 6 | . . . . 1 . . . . 1 . 2 2 Launcher . | . . . . . . . . . . . . . Special Weapon . | . . . . . . . . . . . . . Impact Weapon 1 | . . . . . . . . . . . . 1 Slashing Weapon 1 | . . . . . . . . . 1 . . . Piercing Weapon . | . . . . . . . . . . . . . Special Melee Weapon . | . . . . . . . . . . . . . Unidentified Prototypes 1 | . . . . . . . . 1 . . . . Corrupted Parts 2 | . . . . . . . . . . . . 2 System Corruption 8 | . . . . . . . . . . . . 8 Parts Lost 55 | . . . . . 1 . 5 . 6 . 12 31 Power 11 | . . . . . . . 1 . 2 . 4 4 Propulsion 13 | . . . . . 1 . 1 . . . 3 8 Utility 21 | . . . . . . . 2 . 2 . 4 13 Weapon 10 | . . . . . . . 1 . 2 . 1 6 Highest Loss Streak 12 | . . . . . 1 . 5 . 3 . 2 12 To Critical Strikes . | . . . . . . . . . . . . . Average Slot Usage (%) 89 | . 99 100 100 100 69 75 77 92 91 100 96 71 Engine 5 | . 14 14 14 14 9 1 . . 1 5 4 1 Core 3 | . . . . . . 5 6 6 4 5 4 2 Leg 18 | . 28 28 28 28 7 . 6 20 22 23 21 7 Flight 1 | . . . . . 4 7 4 . . . . 1 Device 2 | . . . . . . 6 7 5 . . . 6 Storage 5 | . 14 14 14 14 9 7 7 6 2 . . 1 Processor 21 | . . . . . 8 15 16 26 31 35 36 28 Hackware 7 | . 13 14 14 14 9 7 7 6 5 5 6 4 Protection 5 | . . . . . 2 7 3 5 11 11 7 5 Energy Gun 3 | . 14 14 14 5 . 4 4 . . . . . Ballistic Gun 8 | . 14 14 14 14 9 6 9 13 4 11 9 . Ballistic Cannon 2 | . . . . 8 9 2 . . 1 . 1 3 Peak Build Rating 86 | 6 11 11 13 16 51 62 70 61 79 79 81 86 Average Rating 53 | 4 10 10 12 14 35 61 57 59 68 79 76 60 On Entrance 37 | . 6 11 11 13 16 51 62 49 61 79 79 55 Naked Turns . | . . . . . . . . . . . . . Heaviest Build 46 | 12 13 13 28 32 45 31 30 30 29 24 33 46 Greatest Support 66 | 20 20 20 20 20 50 50 50 46 61 61 66 53 Greatest Overweight (x) 8 | 1 . . 1 1 1 . . . . . . 8 Average Overweight (x) . | . . . . 1 . . . . . . . . Largest Inventory Capacity 15 | 8 8 8 15 15 15 8 8 8 8 5 5 5 Average Capacity 7 | 7 8 8 9 15 14 8 8 8 6 5 5 5 Most Carried 13 | 4 8 8 9 11 13 8 8 8 7 5 5 5 Average Carried 6 | 2 7 7 8 9 11 7 7 7 5 5 4 2 Final Capacity 15 | 8 8 8 15 15 8 8 8 8 5 5 5 5 Final Carried 11 | 4 8 8 9 11 8 8 6 8 5 5 4 . Class Distribution -------------------- 48% | Scavenger-Mutant 41% | Mutant 5% | Scavenger-Skirmisher Dominant Class ---------------- Mutant | -10/Materials Mutant | -10/Mines Mutant | -10/Exiles Mutant | -9/Mines Mutant | -8/Materials Mutant | -7/Factory Mutant | -7/Garrison Scavenger-Mutant | -6/Factory Scavenger-Mutant | -5/Factory Scavenger-Mutant | -5/Waste Scavenger-Mutant | -5/Factory Scavenger-Mutant | -4/Factory Resources | -11 -10 -10 -10 -9 -8 -7 -7 -6 -5 -5 -5 -4 ----------- Run | Yrd Mat Min Exi Min Mat Fac Gar Fac Fac Was Fac Fac Matter Collected 2572 | 184 85 75 . 7 118 315 351 . 263 . 654 520 Remotely . | . . . . . . . . . . . . . Salvage Created 3086 | . 140 75 . . 244 189 358 . 531 . 929 620 Parts 208 | . 17 13 . . 16 18 19 . 32 . 61 32 Haulers Intercepted . | . . . . . . . . . . . . . Recyclers Shooed 4 | . 1 . . . . . . . . . 3 . Parts Field Recycled . | . . . . . . . . . . . . . Retrieved Matter . | . . . . . . . . . . . . . Parts Self-Destructed . | . . . . . . . . . . . . . Prevented . | . . . . . . . . . . . . . Kills | -11 -10 -10 -10 -9 -8 -7 -7 -6 -5 -5 -5 -4 ------- Run | Yrd Mat Min Exi Min Mat Fac Gar Fac Fac Was Fac Fac Combat Hostiles Destroyed 73 | . 6 5 . . 4 7 11 . 7 . 15 18 Melee 11 | . . . . . . . . . 3 . . 8 Guns 42 | . 6 5 . . 1 5 11 . 2 . 11 1 Cannons 13 | . . . . . 2 2 . . 1 . 4 4 AOE 2 | . . . . . 1 . . . 1 . . . Classes Destroyed 14 | . 3 . . . 5 1 1 . 3 . 1 . Worker 2 | . . . . . . . . . 1 . 1 . Builder 7 | . . . . . 1 . . . 1 . 5 . Tunneler 1 | . . . . . 1 . . . . . . . Recycler 4 | . . . . . 2 . . . 1 . 1 . Operator 2 | . 1 . . . . . . . . . . 1 Watcher 2 | . . . . . . . . . 1 . 1 . Swarmer 34 | . 5 5 . . . 3 7 . . . 4 10 Cutter 3 | . . . . . . 3 . . . . . . Grunt 13 | . 1 . . . 1 . 2 . 3 . 3 3 Brawler 1 | . . . . . . . . . . . 1 . Sentry 7 | . . . . . 2 1 1 . . . 2 1 Specialist 1 | . . . . . . . 1 . . . . . Hunter 3 | . . . . . 1 . . . . . 2 . Programmer 11 | . . . . . . . . . 4 . 3 4 Best Kill Streak 6 | . 3 3 . . 4 3 4 . 2 . 6 6 Combat Bots Only 6 | . 3 3 . . 1 3 4 . 2 . 4 6 Max Kills in Single Turn 4 | . 1 1 . . 4 1 2 . 2 . 2 1 Gunslinging . | . . . . . . . . . . . . . Exploded 1 | . . . . . 1 . . . 1 . . . Melee 1 | . . . . . . . . . 1 . . 1 Uniques/NPCs Destroyed . | . . . . . . . . . . . . . Combat | -11 -10 -10 -10 -9 -8 -7 -7 -6 -5 -5 -5 -4 -------- Run | Yrd Mat Min Exi Min Mat Fac Gar Fac Fac Was Fac Fac Hostile Shots Fired 693 | . 15 13 . . 19 57 136 . 48 1 150 254 Missed 228 | . 4 6 . . 7 20 51 . 18 1 42 79 Damage Taken 8187 | . 93 56 . . 375 600 892 . 799 . 1973 3399 Core 1921 | . 45 8 . . 132 89 79 . 38 . 366 1164 Absorbed by Shields 178 | . . . . . . . 136 . . . . 42 Redirected to Shielding 419 | . . . . . . . . . 192 . 55 172 Core Remaining (%) 81 | 100 . . . 78 76 . 76 100 . . 59 . Volleys Fired 198 | . 13 6 . . 18 21 44 . 8 . 67 21 Largest 2 | . 2 2 . . 2 2 2 . 2 . 2 2 Hottest 113 | . 76 76 . . 73 80 113 . 74 . 101 109 Shots Fired 344 | . 26 12 . . 36 31 65 . 16 . 134 24 Gun 247 | . 26 12 . . 18 22 65 . 12 . 89 3 Cannon 97 | . . . . . 18 9 . . 4 . 45 21 Launcher . | . . . . . . . . . . . . . Special . | . . . . . . . . . . . . . Kinetic 290 | . 13 6 . . 36 19 44 . 16 . 134 22 Thermal 33 | . 13 6 . . . . 14 . . . . . Explosive . | . . . . . . . . . . . . . Electromagnetic 21 | . . . . . . 12 7 . . . . 2 Robot Hit Streak 14 | . 5 3 . . 4 4 6 . 8 . 14 7 Robot Miss Streak 7 | . 2 3 . . 3 2 5 . 2 . 7 2 Penetration Max 1 | . . . . . . . . . . . 1 . Secondary Targets 1 | . . 1 . . . . . . . . . . Max Gunslinging Chain 1 | . . 1 . . . . . . . . . . Shots Hit Robots 245 | . 18 7 . . 19 18 41 . 23 . 72 47 Core Hits 136 | . 9 6 . 1 12 14 23 . 17 . 40 14 Critical Kills 7 | . . . . . 1 . . . . . 3 3 Critical Parts Destroyed 11 | . . . . . . . . . . . 4 7 Critical Strikes 31 | . . . . . 1 . . . 2 . 13 15 Destroy 8 | . . . . . 1 . . . . . 7 . Blast 10 | . . . . . . . . . . . 6 4 Smash 11 | . . . . . . . . . . . . 11 Sever 2 | . . . . . . . . . 2 . . . Melee Attacks 58 | . . . . . . . . . 15 . . 43 Impact 43 | . . . . . . . . . . . . 43 Slashing 15 | . . . . . . . . . 15 . . . Piercing . | . . . . . . . . . . . . . Sneak Attacks 2 | . . . . . . . . . 2 . . . Combat Hostiles . | . . . . . . . . . . . . . Follow-up Attacks . | . . . . . . . . . . . . . Damage Inflicted 7777 | . 253 118 . 7 898 370 763 34 1437 . 2027 1870 Guns 3273 | . 253 113 . . 211 256 763 . 207 . 1403 67 Cannons 1364 | . . . . . 177 91 . . 93 . 518 485 Explosions 1025 | . . . . . 510 23 . . 426 . 66 . Melee 2021 | . . . . . . . . . 707 . . 1314 Ramming 94 | . . 5 . 7 . . . 34 4 . 40 4 Kinetic 4118 | . 154 69 . . 388 191 582 . 300 . 1921 513 Thermal 1274 | . 99 44 . . 510 . 129 . 426 . 66 . Explosive . | . . . . . . . . . . . . . Electromagnetic 270 | . . . . . . 179 52 . . . . 39 Impact 1314 | . . . . . . . . . . . . 1314 Slashing 707 | . . . . . . . . . 707 . . . Piercing . | . . . . . . . . . . . . . Highest Corruption 11 | . . . . . . . . . . . 9 11 Average Corruption 6 | . . . . . . . . . . . 5 8 Corruption Purged . | . . . . . . . . . . . . . Corruption Blocked . | . . . . . . . . . . . . . Effects 70 | . . . . . . . . . . . 52 18 Message Errors 12 | . . . . . . . . . . . 9 3 Matter Fused 23 | . . . . . . . . . . . 17 6 Heat Flow Errors 3 | . . . . . . . . . . . 3 . Energy Discharges 7 | . . . . . . . . . . . 3 4 Parts Fused 1 | . . . . . . . . . . . 1 . Data Loss (minor) 9 | . . . . . . . . . . . 7 2 Data Loss (major) 7 | . . . . . . . . . . . 6 1 Misfires 3 | . . . . . . . . . . . 3 . Alerts 1 | . . . . . . . . . . . . 1 Weapon Failures 4 | . . . . . . . . . . . 3 1 Overload Shots . | . . . . . . . . . . . . . Overflow Damage 871 | . . . . . 111 . . . 222 . 36 502 Projectiles 4 | . . . . . . . . . . . . 4 Explosions 303 | . . . . . 111 . . . 156 . 36 . Melee 564 | . . . . . . . . . 66 . . 498 Knockbacks 17 | . . . . . . . . . 1 . 5 11 Impact 4 | . . . . . . . . . . . 1 3 Kinetic 11 | . . . . . . . . . 1 . 4 6 Secondary 2 | . . . . . . . . . . . . 2 Self-Inflicted Damage 407 | . . . . . 200 . . . 205 . . 2 Shots 5 | . . . . . 2 . . . 3 . . . Rammed 1 | . . . . . . . . . . . . 1 Targets Rammed 16 | . . 2 . 3 . . . 4 1 . 5 1 Kicked 15 | . . 2 . 3 . . . 4 1 . 5 . Crushed . | . . . . . . . . . . . . . Highest Temperature 517 | . 45 60 . . 252 213 517 . 17 . 235 11 Average Temperature 112 | . 18 26 . . 84 105 277 . 8 . 26 4 Received Heat Transfer 930 | . 12 . . . 99 24 234 . 144 . 192 225 Effects 28 | . . . . . . . 27 . . . 1 . Shutdowns 6 | . . . . . . . 6 . . . . . Energy Bleed 4 | . . . . . . . 3 . . . 1 . Interference 3 | . . . . . . . 3 . . . . . Matter Decay 1 | . . . . . . . 1 . . . . . Damage (minor) 1 | . . . . . . . 1 . . . . . Damage (major) 13 | . . . . . . . 13 . . . . . Siege Activations . | . . . . . . . . . . . . . Robots Corrupted 5 | . . . . . . . . . . . . 5 Combat Hostiles 5 | . . . . . . . . . . . . 5 Parts Fried 2 | . . . . . . . . . . . . 2 Impact Corruptions 14 | . . . . . . . . . . . . 14 Robots Melted . | . . . . . . . . . . . . . Combat Hostiles . | . . . . . . . . . . . . . Parts Melted 3 | . . . . . 1 . . . . . 2 . Heat Transferred 1105 | . 259 111 . . 250 . 185 . 250 . 50 . Parts Sabotaged . | . . . . . . . . . . . . . Parts Stolen . | . . . . . . . . . . . . . Parts Stripped . | . . . . . . . . . . . . . Power Chain Reactions 1 | . . . . . . 1 . . . . . . Alert | -11 -10 -10 -10 -9 -8 -7 -7 -6 -5 -5 -5 -4 ------- Run | Yrd Mat Min Exi Min Mat Fac Gar Fac Fac Was Fac Fac Peak Influence 477 | . 227 238 . . 274 325 477 260 219 67 352 453 Initial 245 | . . 88 . . . 124 147 245 29 52 46 172 Average 143 | . 77 193 . . 114 233 381 207 123 61 82 254 Maximum Alert Level 2 | . 1 1 . . 1 1 2 1 1 . 1 2 Low Security (%) 65 | 100 85 53 . 100 69 28 4 24 88 100 86 36 Level 1 31 | . 14 46 . . 30 71 34 75 11 . 13 62 Level 2 3 | . . . . . . . 60 . . . . 1 Level 3 . | . . . . . . . . . . . . . Level 4 . | . . . . . . . . . . . . . Level 5 . | . . . . . . . . . . . . . High Security . | . . . . . . . . . . . . . Max Security . | . . . . . . . . . . . . . Squads Dispatched 15 | . . . . . 2 2 . . 4 . 3 4 Investigation . | . . . . . . . . . . . . . Extermination 5 | . . . . . . . . . 1 . 2 2 Reinforcement 8 | . . . . . . 2 . . 3 . 1 2 Assault . | . . . . . . . . . . . . . Garrison 2 | . . . . . 2 . . . . . . . Intercept . | . . . . . . . . . . . . . Searches Triggered . | . . . . . . . . . . . . . Construction Impeded 1 | . . . . . . . . . . . . 1 Haulers Reinforced 1 | . . . . . . . . . 1 . . . Active Scanning Responses . | . . . . . . . . . . . . . Cargo Convoy Interrupts . | . . . . . . . . . . . . . Stealth | -11 -10 -10 -10 -9 -8 -7 -7 -6 -5 -5 -5 -4 --------- Run | Yrd Mat Min Exi Min Mat Fac Gar Fac Fac Was Fac Fac Distress Signals 4 | . . . . . 2 . . . . . 2 . Communications Jammed . | . . . . . . . . . . . . . Distress Signals . | . . . . . . . . . . . . . Times Spotted 122 | . 11 5 . . 8 18 13 . 11 6 24 26 Peak Tracking Total 9 | . 4 3 . . 6 9 5 . 3 6 5 7 Tactical Retreats 13 | . 2 1 . . . . 3 . . . 3 4 Traps | -11 -10 -10 -10 -9 -8 -7 -7 -6 -5 -5 -5 -4 ------- Run | Yrd Mat Min Exi Min Mat Fac Gar Fac Fac Was Fac Fac Traps Triggered 10 | . . . . . . . 4 . 1 . 4 1 Indirectly . | . . . . . . . . . . . . . Trap Hack Attempts . | . . . . . . . . . . . . . Triggered . | . . . . . . . . . . . . . Disarmed . | . . . . . . . . . . . . . Reprogrammed . | . . . . . . . . . . . . . Reused . | . . . . . . . . . . . . . Traps Extracted . | . . . . . . . . . . . . . Installed . | . . . . . . . . . . . . . Triggered . | . . . . . . . . . . . . . Machines | -11 -10 -10 -10 -9 -8 -7 -7 -6 -5 -5 -5 -4 ---------- Run | Yrd Mat Min Exi Min Mat Fac Gar Fac Fac Was Fac Fac Machines Disabled 18 | . . . . . 2 4 . . 5 . 7 . Max in Single Turn 5 | . . . . . 2 1 . . 5 . 3 . Garrison Access 1 | . . . . . . . . . . . 1 . Machines Repaired . | . . . . . . . . . . . . . Machines Dismantled . | . . . . . . . . . . . . . Machines Sabotaged . | . . . . . . . . . . . . . Overloaded Fab Kills . | . . . . . . . . . . . . . Hacking | -11 -10 -10 -10 -9 -8 -7 -7 -6 -5 -5 -5 -4 --------- Run | Yrd Mat Min Exi Min Mat Fac Gar Fac Fac Was Fac Fac Machines Accessed 17 | . 2 . 1 . 3 3 1 1 . . 5 1 Terminals 14 | . 2 . . . 3 2 1 1 . . 4 1 Fabricators . | . . . . . . . . . . . . . Repair Stations . | . . . . . . . . . . . . . Recycling Units . | . . . . . . . . . . . . . Scanalyzers . | . . . . . . . . . . . . . Garrison Access 2 | . . . . . . 1 . . . . 1 . Total Hacks 40 | . 4 . 1 . 8 9 1 4 . . 10 3 Successful 17 | . 1 . 1 . 3 3 . 3 . . 4 2 Failed 23 | . 3 . . . 5 6 1 1 . . 6 1 Catastrophic 4 | . 1 . . . 1 1 1 . . . . . Database Lockouts . | . . . . . . . . . . . . . Manual 32 | . 4 . 1 . 6 6 1 4 . . 7 3 Terminals 36 | . 4 . . . 8 8 1 4 . . 8 3 Fabricators . | . . . . . . . . . . . . . Repair Stations . | . . . . . . . . . . . . . Recycling Units . | . . . . . . . . . . . . . Scanalyzers . | . . . . . . . . . . . . . Garrison Access 3 | . . . . . . 1 . . . . 2 . Terminal Hacks 14 | . 1 . 1 . 3 2 . 3 . . 2 2 Record 1 | . . . . . . 1 . . . . . . Robot Analysis 1 | . . . . . . . . . . . 1 . Level Access Points 3 | . . . . . . 1 . 1 . . 1 . Branch Access Points 2 | . 1 . . . . . . . . . . 1 Locate Traps 2 | . . . . . 1 . . 1 . . . . Dispatch Records 1 | . . . . . 1 . . . . . . . Reinforcement Status 1 | . . . . . 1 . . . . . . . Zone Layout 2 | . . . . . . . . 1 . . . 1 Derelict Proto ID Bank 1 | . . . 1 . . . . . . . . . Fabricator Hacks . | . . . . . . . . . . . . . Repair Station Hacks . | . . . . . . . . . . . . . Recycling Unit Hacks . | . . . . . . . . . . . . . Scanalyzer . | . . . . . . . . . . . . . Garrison Access Hacks 2 | . . . . . . 1 . . . . 1 . Unlock Access 1 | . . . . . . 1 . . . . . . Seal Access 1 | . . . . . . . . . . . 1 . Unauthorized Hacks 1 | . . . . . . . . . . . 1 . Terminals 1 | . . . . . . . . . . . 1 . Assimilate 1 | . . . . . . . . . . . 1 . Fabricators . | . . . . . . . . . . . . . Repair Stations . | . . . . . . . . . . . . . Recycling Units . | . . . . . . . . . . . . . Scanalyzers . | . . . . . . . . . . . . . Garrison Access . | . . . . . . . . . . . . . Data Cores Recovered 1 | . 1 . . . . . . . . . . . Used . | . . . . . . . . . . . . . Hacking Detections 13 | . 2 . . . 2 2 1 1 . . 4 1 Full Trace Events . | . . . . . . . . . . . . . Feedback Events . | . . . . . . . . . . . . . Feedback Blocked . | . . . . . . . . . . . . . Robot Schematics Acquired . | . . . . . . . . . . . . . Robots Built . | . . . . . . . . . . . . . Authchips . | . . . . . . . . . . . . . Time . | . . . . . . . . . . . . . Total Robot Build Rating . | . . . . . . . . . . . . . Part Schematics Acquired . | . . . . . . . . . . . . . Parts Built . | . . . . . . . . . . . . . Authchips . | . . . . . . . . . . . . . Time . | . . . . . . . . . . . . . Total Part Build Rating . | . . . . . . . . . . . . . Parts Repaired . | . . . . . . . . . . . . . Time . | . . . . . . . . . . . . . Parts Recycled . | . . . . . . . . . . . . . Recycled Matter . | . . . . . . . . . . . . . Retrieved Matter . | . . . . . . . . . . . . . Retrieved Components . | . . . . . . . . . . . . . Parts Scanalyzed . | . . . . . . . . . . . . . Part Schematics Acquired . | . . . . . . . . . . . . . Parts Damaged . | . . . . . . . . . . . . . Bothacking | -11 -10 -10 -10 -9 -8 -7 -7 -6 -5 -5 -5 -4 ------------ Run | Yrd Mat Min Exi Min Mat Fac Gar Fac Fac Was Fac Fac Used RIF Installer . | . . . . . . . . . . . . . Robots Hacked . | . . . . . . . . . . . . . Non-combat . | . . . . . . . . . . . . . Combat . | . . . . . . . . . . . . . Robot Hacks Applied . | . . . . . . . . . . . . . Relay Couplers Released . | . . . . . . . . . . . . . Fabnet Peak Effective % . | . . . . . . . . . . . . . Robots Rewired . | . . . . . . . . . . . . . Allies Hacked . | . . . . . . . . . . . . . Hacks Repelled . | . . . . . . . . . . . . . Allies | -11 -10 -10 -10 -9 -8 -7 -7 -6 -5 -5 -5 -4 -------- Run | Yrd Mat Min Exi Min Mat Fac Gar Fac Fac Was Fac Fac Total Allies . | . . . . . . . . . . . . . Largest Group . | . . . . . . . . . . . . . Highest-Rated Group . | . . . . . . . . . . . . . Highest-Rated Ally . | . . . . . . . . . . . . . Total Orders . | . . . . . . . . . . . . . Ally Attacks . | . . . . . . . . . . . . . Total Damage . | . . . . . . . . . . . . . Kills . | . . . . . . . . . . . . . Allies Corrupted . | . . . . . . . . . . . . . Allies Melted . | . . . . . . . . . . . . . Intel | -11 -10 -10 -10 -9 -8 -7 -7 -6 -5 -5 -5 -4 ------- Run | Yrd Mat Min Exi Min Mat Fac Gar Fac Fac Was Fac Fac Robot Analysis Total 1 | . . . . . . . . . . . 1 . Derelict Logs Recovered . | . . . . . . . . . . . . . Drone Launches . | . . . . . . . . . . . . . Drone Recoveries . | . . . . . . . . . . . . . Exploration | -11 -10 -10 -10 -9 -8 -7 -7 -6 -5 -5 -5 -4 ------------- Run | Yrd Mat Min Exi Min Mat Fac Gar Fac Fac Was Fac Fac Turns Passed 7465 | 59 249 344 344 735 353 619 387 531 689 116 2145 894 Spaces Moved 5058 | 40 165 249 267 383 314 471 302 496 431 111 1366 463 Core 27 | 5 . . . . . . . . . . . 22 Treads . | . . . . . . . . . . . . . Legs 4012 | 35 165 249 267 383 67 . 107 496 431 111 1366 335 Wheels . | . . . . . . . . . . . . . Hover 48 | . . . . . . . . . . . . 48 Flight 971 | . . . . . 247 471 195 . . . . 58 Fastest Speed 37 | 50 120 120 120 190 50 50 50 100 100 105 100 37 Average Speed 105 | 116 120 120 127 190 79 50 67 100 108 105 104 114 Slowest Speed 515 | 120 120 120 190 190 190 50 100 100 120 105 105 515 Overloaded Moves . | . . . . . . . . . . . . . Propulsion Burnouts . | . . . . . . . . . . . . . Robots Hopped 10 | . . . . . 7 3 . . . . . . Cave-ins Triggered . | . . . . . . . . . . . . . Exploration Rate (%) 34 | 3 34 39 61 91 25 13 35 14 13 79 31 8 Regions Visited 12 Branch Regions 3 Pre-discovered Areas . | . . . . . . . . . . . . . Known Exits Taken 5 | . 1 . . . 1 1 . 1 . . 1 . Unknown Exits Taken 4 | 1 . 1 1 1 . . . . . . . . Scrap Searched 1 | . . . . 1 . . . . . . . . Spaces Dug . | . . . . . . . . . . . . . Terrain Destroyed 176 | . . . . . 53 3 . . 61 . 52 7 Melee . | . . . . . . . . . . . . . Projectile 53 | . . . . . 11 3 . . . . 32 7 AOE 123 | . . . . . 42 . . . 61 . 20 . Terrain Rammed . | . . . . . . . . . . . . . Walls Destroyed . | . . . . . . . . . . . . . Machines Disabled . | . . . . . . . . . . . . . Actions | -11 -10 -10 -10 -9 -8 -7 -7 -6 -5 -5 -5 -4 --------- Run | Yrd Mat Min Exi Min Mat Fac Gar Fac Fac Was Fac Fac Total 6733 | 49 190 283 274 388 379 825 429 533 611 110 1944 718 Wait 1165 | . 4 23 . . 25 306 44 15 123 . 474 151 Move 5030 | 39 164 248 266 382 301 465 301 495 431 110 1365 463 Hop 8 | . . . . . 5 3 . . . . . . Pick Up 62 | 4 5 1 2 2 10 8 7 7 6 . 5 5 Fast Attach 51 | 6 1 . . . 3 4 1 2 6 . 8 20 Attach 31 | . . . . . 1 2 6 2 7 . 3 10 Detach 4 | . . . . . 2 . . . . . . 2 Swap 33 | . 1 1 1 1 3 5 6 1 5 . 8 1 Drop 64 | . 2 2 5 . 11 11 7 7 9 . 9 1 Fire 198 | . 13 6 . . 18 21 44 . 8 . 67 21 Melee 58 | . . . . . . . . . 15 . . 43 Ram 1 | . . . . . . . . . . . . 1 Kick 15 | . . 2 . 3 . . . 4 1 . 5 . Crush . | . . . . . . . . . . . . . Escape Stasis 13 | . . . . . . . 13 . . . . . Rewire . | . . . . . . . . . . . . . Trap . | . . . . . . . . . . . . . Miscellaneous . | . . . . . . . . . . . . . Route ------- -11/Scrapyard -10/Materials (discovered 3 exits: [*Mat x2] / *Min) -10/Mines -10/Exiles (discovered 2 exits: [*Min x2]) -9/Mines -8/Materials -7/Factory (discovered 5 exits: Fac x4 / Gar) -7/Garrison -6/Factory (discovered 4 exits: *Fac x4) -5/Factory -5/Waste -5/Factory (discovered 4 exits: *Fac x4) -4/Factory (discovered 5 exits: *Upp x2 / Ext x2 / Arm) History --------- Turn | Location | Event 13 | -11/Scrapyard | Discovered new exit (range 16) 60 | -11/Scrapyard | Entered Materials 92 | -10/Materials | Discovered new exit (range 15) 142 | -10/Materials | Identified exit to Mines 151 | -10/Materials | Discovered new exit (range 5) 235 | -10/Materials | Discovered new exit (range 14) 309 | -10/Materials | Entered Mines 316 | -10/Mines | Build established: Mutant 375 | -10/Mines | Met a Derelict bent on vengeance 378 | -10/Mines | Deemed a non-threat by the Exiles lab entrance 378 | -10/Mines | Discovered new exit (range 5) 418 | -10/Mines | YI-UF0 nonchalantly dropped a Grenade Launcher on the ground 533 | -10/Mines | Assembled infested the area 653 | -10/Mines | Entered Exiles 669 | -10/Exiles | Discovered new exit (range 15) 683 | -10/Exiles | Met 8R-AWN 704 | -10/Exiles | Met EX-HEX 735 | -10/Exiles | Met EX-BIN 752 | -10/Exiles | Aligned with FarCom system 753 | -10/Exiles | Given EX-Vault access code 785 | -10/Exiles | Opened EX-Vault 796 | -10/Exiles | Found Flying Fortress v7 822 | -10/Exiles | Warned to stay clear of 0b10 Research branches 858 | -10/Exiles | Met EX-DEC 913 | -10/Exiles | Discovered new exit (range 14) 997 | -10/Exiles | Left Exiles lab with Flying Fortress v7 997 | -10/Exiles | Entered Mines 1303 | -9/Mines | A weapon hastily lodged in a ceiling crevice suddenly fell to the ground 1359 | -9/Mines | Discovered new exit (range 9) 1431 | -9/Mines | Received a Rocket Launcher from a helpful Derelict 1732 | -9/Mines | Entered Materials 1732 | -8/Materials | Evolved 4 slots: Propulsion x2, Utility x2 1969 | -8/Materials | Garrison activated, responded to threat 2075 | -8/Materials | Discovered new exit (range 15) 2085 | -8/Materials | Identified exit to Factory 2085 | -8/Materials | Entered Factory 2085 | -7/Factory | Evolved 2 slots: Utility x2 2233 | -7/Factory | Identified exit to Factory 2704 | -7/Factory | Identified exit to Garrison 2704 | -7/Factory | Entered Garrison 2880 | -7/Garrison | Triggered checkpoint 2880 | -7/Garrison | Triggered checkpoint 2999 | -7/Garrison | Lost 5 parts (1p1n2u1w) 3084 | -7/Garrison | Discovered exit to Factory (range 8) 3091 | -7/Garrison | Entered Factory 3091 | -6/Factory | Evolved 2 slots: Utility x2 3190 | -6/Factory | Identified exit to Factory 3290 | -6/Factory | Build established: Scavenger-Mutant 3622 | -6/Factory | Entered another Factory area 3622 | -5/Factory | Evolved 2 slots: Power x1, Utility x1 3765 | -5/Factory | Lost 3 parts (1p1u1w) 4311 | -5/Factory | Sucked down chute 4311 | -5/Factory | Entered Waste 4334 | -5/Waste | Spotted C-40 Crusher 4337 | -5/Waste | Spotted C-40 Crusher 4351 | -5/Waste | Spotted C-40 Crusher 4352 | -5/Waste | Spotted C-40 Crusher 4356 | -5/Waste | Spotted C-40 Crusher 4378 | -5/Waste | Spotted C-40 Crusher 4418 | -5/Waste | Discovered new exit (range 10) 4426 | -5/Waste | Identified exit to Factory 4427 | -5/Waste | Entered Factory 4761 | -5/Factory | Identified exit to Factory 6006 | -5/Factory | Spotted B-75 Beast 6572 | -5/Factory | Entered another Factory area 6572 | -4/Factory | Evolved 2 slots: Utility x2 6689 | -4/Factory | Build established: Scavenger-Skirmisher 7022 | -4/Factory | Core integrity fell below 50% 7048 | -4/Factory | System corruption reached 10% 7058 | -4/Factory | Lost 11 parts (1p2n7u1w) 7173 | -4/Factory | Identified exit to Upper Caves 7173 | -4/Factory | Identified exit to Extension 7173 | -4/Factory | Identified exit to Armory 7304 | -4/Factory | Lost 7 parts (1p3n2u1w) 7353 | -4/Factory | Spotted B-86 Titan 7395 | -4/Factory | Core integrity fell below 20% 7466 | -4/Factory | Destroyed by B-86 Titan with Railgun Last Messages --------------- 07456_ Terminal disabled. 07456_ U-05 Engineer builds a Door. 07457_ K-01 Serf collects debris. 07459_ U-05 Engineer lays Concrete. 07459_ U-05 Engineer builds a Wall. 07460_ U-05 Engineer lays Concrete. 07461_ K-01 Serf collects debris. 07461_ U-05 Engineer lays Concrete. 07461_ U-05 Engineer builds a Wall. 07461_ Knocked back. 07461_ Antigrav System destroyed. 07462_ U-05 Engineer builds a Wall. 07462_ U-05 Engineer lays Concrete. 07463_ U-05 Engineer builds a Wall. 07465_ K-01 Serf collects debris. 07465_ U-05 Engineer builds a Wall. 07465_ U-05 Engineer lays Concrete. 07466_ U-05 Engineer builds a Wall. 07466_ Penetrated by Slug. [Achievement: Just Browsing] Map ----- +----------------------------------------------------+ | ?????????????????????????????????????????????????? | | ?????????????????????????????????????????????????? | | ?????????????????????????????????????????????????? | | ?????????????????????????????????????????????????? | | ?????????????????????????????????????????????????? | | ?????????????????????????????????????????????????? | | ?????????????????????????????????????????????????? | | ?????????????????????????????????????????????????? | | ?????????????????????????????????????????????????? | | ?????????????????????????????????????????????????? | | ??????????????????????? ????????????????????????? | | ??????????????????????? ????????????????????????? | | ??????????????????????? ????????????????????????? | | ??????????????????????? ????????????????????????? | | ??????????????????????? ????????????????????????? | | ??????????????????????? ????????????????????????? | | ??????????????????######+#######?????????????????? | | ??????????????????# #?????????????????? | | ??????????????????# ! #?????????????????? | | ??????????????????# #??Y??????????????? | | ??????????????????# u #?????????????????? | | ??????????????????# ! #?????????????????? | | ??????????????????# #?????????????????? | | ?????############## >! #?????????????????? | | ?????# """ # m [ #?????????????????? | | ?????# ""R" ! [ # @ #?????????????????? | | ?????# "" " # #?????????????????? | | ?????# """ # #?????????????????? | | ?????# """ # #?????????????????? | | ?????# """ ##;;;;%########????????????????? | | ?????# ; ! #????????????????? | | ?????# """ """ ; ! #????????????????? | | ?????# """ """ ; !* #????????????????? | | ?????# """ """ # #????????????????? | | ?????# uu# #??? ????????????? | | ?????# ! # | = #?? ????????????? | | ?????############/#;;;;;;"""+#####? ?????????????? | | ?? !%%BBuu! * # ?????????##### | | ?? %% BB # ?????????# | | ?? [ k % %+" ????? ??# | | ???"""""" # ????? ?# """ | | ????? # ???????# """ | | ???? # ???????# """ | | ???? # ???????# " | | ???? ! ] # ????????# | | ????? ] ##??????????# | | ?????"""" !] ##??????????#!! | | ????? % ##??????????#!! | | ????? ##??????????#! | | ??#######+############# #### ##??????????# | +----------------------------------------------------+ Best States ------------- Heat Dissipation 57 Energy Generation 31 Energy Capacity 315 Matter Stores 300 Matter Capacity 450 Sight Range 16 Terrain Scan Range 14 Terrain Scan Density 110 Armor Coverage 225 Core Shielding 30 Propulsion Shielding 90 Evasion (%) 62 Targeting Accuracy 14 Melee Accuracy 8 Target Analysis 9 Core Analysis 6 Armor Integrity Analysis 30 Kinecelleration 40 Offensive Hacking 10 Defensive Hacking 10 Item Schematics ----------------- None Robot Schematics ------------------ None Fabricated ------------ Nothing Alien Tech Used ----------------- None Achievements -------------- Just Browsing True Hacker Challenges ------------ None Game ------ Seed PrecisionGravitonBank Manual? 0 Play Time 01:33:13 Cumulative 15.2 hours Start 2024.10.04 @ 21:27:02 End 2024.10.06 @ 13:48:46 Sessions 3 Manual Loads 0 Difficulty Rogue Special Mode None Game No. 19 Rogue 19 Adventurer 0 Explorer 0 Win Type - Total 0 Types 0/0/0/0/0/0/0/0/0 Lore% 15 Gallery% 25 Achievement% 21 Wizard Run 0 Options --------- Layout 1 ASCII 0 Keyboard 0 Movement Numpad Keybinds 0 Fullscreen 1 Font 24/Smallcaps Map View 50x35 Zoom Use 0% Tactical HUD 1 Map Filters NONE Filters NONE Steam 1 RUN: 472d7436-20a9-4714-b2ce-5073586e99b6